bitfinex/quotes_ETHUSD_20260217
["timestamp","ask_amount","ask_price","bid_price","bid_amount"]
[1771348252739,0.678,1970.2,1969.5,0.065]
[1771348252934,0.678,1970.2,1969.3,0.97751381]
[1771348253159,1.26897111,1970.1,1969.3,2.24698803]
[1771348253367,5.07511569,1970.4,1969.3,2.24698803]
[1771348253368,7.14023893,1971.0,1969.4,0.5]
[1771348253589,14.116947,1970.8,1969.4,0.5]
[1771348253871,14.116947,1970.8,1969.3,2.24698803]
[1771348253872,6.78092891,1970.6,1969.3,0.97751381]
[1771348254171,15.006913,1970.5,1969.3,2.74698956]
[1771348254375,2.896,1970.3,1969.3,2.74698956]
[1771348254541,0.679,1970.4,1969.3,2.74698956]
[1771348254743,0.679,1970.4,1969.4,0.5]
[1771348255070,0.679,1970.4,1969.5,1.2693577]
[1771348255384,0.679,1970.8,1969.6,0.5]
[1771348255591,0.679,1970.8,1969.7,0.5]
[1771348255879,0.679,1970.8,1969.8,0.5]
[1771348256539,1.26800568,1971.7,1969.8,0.5]
[1771348256854,0.679,1971.6,1969.8,0.5]
[1771348257048,3.086571,1971.5,1969.8,0.5]
[1771348257250,3.086571,1971.5,1970.0,0.5]
[1771348257251,16.636838,1971.3,1970.0,0.5]
[1771348257836,14.650689,1971.3,1970.0,0.5]
[1771348258841,11.35019,1971.3,1970.0,0.5]
[1771348259076,1.26813432,1971.4,1970.0,0.5]
[1771348259368,1.26806999,1971.5,1970.2,0.5]
[1771348259741,6.213968,1971.4,1970.2,0.5]
[1771348259941,1.26806999,1971.5,1970.2,0.5]
[1771348260406,2.291438,1971.4,1970.2,0.5]
[1771348260954,2.291438,1971.4,1969.8,0.533]
[1771348261157,1.26852039,1970.8,1969.7,0.5]
[1771348261362,36.78092891,1970.6,1969.3,1.47751381]
[1771348261544,0.1024,1970.4,1969.3,1.47751381]
[1771348261741,6.88332891,1970.2,1969.3,0.97751381]
[1771348261972,0.1024,1970.4,1969.3,0.97751381]
[1771348261973,4.324846,1970.0,1969.3,0.97751381]
[1771348262178,0.1024,1970.4,1969.3,2.24699722]
[1771348262475,0.684,1970.6,1969.4,0.5]
[1771348262677,1.26819865,1971.3,1969.7,0.5]
[1771348262875,5.368365,1971.1,1969.7,0.5]
[1771348263279,30.0,1970.9,1969.6,0.001]
[1771348263479,9.7617,1970.5,1969.6,0.001]
[1771348263680,2.43247,1970.3,1969.6,0.001]
[1771348264049,1.598,1970.4,1969.6,0.001]
[1771348264050,1.598,1970.4,1969.6,1.27026524]
[1771348264250,1.598,1970.4,1969.3,1.47851381]
[1771348264251,6.78092891,1970.2,1969.3,0.97851381]
[1771348264484,0.1024,1969.5,1967.8,1.27045431]
[1771348264667,15.628976,1969.2,1967.8,0.5]
[1771348264879,12.649915,1969.3,1967.8,0.5]
[1771348265101,2.346828,1969.3,1967.8,1.035]
[1771348265269,1.26948661,1969.3,1968.1,0.5]
[1771348265945,2.86943112,1969.4,1968.1,0.5]
[1771348266146,11.352084,1969.3,1968.1,0.5]
[1771348266353,3.6112,1969.3,1968.1,0.5]
[1771348266649,20.484623,1969.3,1968.1,0.5]
[1771348266848,11.461284,1969.3,1968.1,0.5]
[1771348267054,7.583524,1969.3,1968.1,0.5]
[1771348267258,1.26955108,1969.2,1968.1,1.77020561]
[1771348267454,9.420199,1969.1,1968.1,0.5]
[1771348267685,3.002505,1969.1,1968.1,1.77025662]
[1771348267891,5.212891,1969.2,1968.2,0.5]
[1771348268060,1.26952534,1969.3,1968.0,0.5]
[1771348268261,5.159195,1969.2,1968.0,0.5]
[1771348268553,1.26952534,1969.3,1968.0,0.5]
[1771348268984,12.417226,1969.2,1968.0,0.5]
[1771348269186,1.26952534,1969.3,1968.0,0.5]
[1771348269487,1.26952534,1969.3,1968.2,0.5]
[1771348270358,2.86946775,1969.4,1968.2,0.5]
[1771348270560,1.26946775,1969.4,1968.4,0.5]
[1771348270759,1.96133679,1969.6,1968.4,0.5]
[1771348270964,7.1509827,1970.2,1968.4,0.5]
[1771348271186,0.692,1969.8,1968.4,0.5]
[1771348271611,0.915,1970.1,1968.5,0.5]
[1771348271767,1.26903553,1970.0,1968.6,0.5]
[1771348272402,5.99101722,1970.1,1968.9,0.5]
[1771348272403,2.1839749,1970.1,1968.9,0.5]
[1771348273166,5.07514342,1970.4,1968.9,0.5]
[1771348273167,2.791411,1970.4,1968.9,0.5]
[1771348273511,2.099011,1970.3,1968.9,0.5]
[1771348273964,1.26888767,1970.3,1969.1,0.5]
[1771348274624,5.07536923,1970.7,1969.1,0.5]
[1771348274625,1.26852039,1970.9,1969.3,0.5]
[1771348274777,2.95947261,1970.8,1969.5,0.5]
[1771348274965,0.692,1971.0,1969.5,0.5]
[1771348274966,2.95947261,1970.7,1969.5,0.5]
[1771348275296,3.450008,1970.9,1969.7,0.5]
[1771348275470,0.692,1971.0,1969.7,0.5]
[1771348275664,2.96147602,1970.9,1969.7,0.5]
[1771348275915,1.96040989,1971.0,1969.9,0.5]
[1771348276193,2.18438833,1971.2,1969.9,0.5]
[1771348276520,0.9161,1971.2,1969.9,0.5]
[1771348276672,0.0011,1971.2,1970.1,0.5]
[1771348276999,0.0011,1971.2,1969.8,8.05009329]
[1771348277000,0.0011,1971.2,1970.3,0.5]
[1771348277218,0.0011,1971.2,1970.5,0.5]
[1771348277398,16.064555,1971.0,1969.9,0.5]
[1771348277590,0.0011,1970.3,1969.9,0.5]
[1771348277908,0.0011,1970.3,1970.0,1.26903553]
[1771348278292,0.0011,1971.2,1970.1,0.5]
[1771348278528,0.0011,1971.2,1970.2,0.538]
[1771348278724,0.0011,1971.2,1970.3,0.5]
[1771348279014,13.76408837,1971.1,1970.0,1.26903553]
[1771348279192,3.65377737,1971.0,1969.8,1.76911404]
[1771348279387,2.96177737,1970.9,1969.4,0.5]
[1771348279693,1.607,1971.0,1969.5,1.8073577]
[1771348279694,2.96177737,1970.8,1969.5,1.8073577]
[1771348280014,2.87541573,1971.0,1969.8,0.5]
[1771348280422,2.95972986,1970.9,1969.8,0.5]
[1771348280595,2.95972986,1970.9,1969.7,1.26922881]
[1771348280945,14.912101,1970.8,1969.7,1.26922881]
[1771348281303,4.371536,1970.9,1969.8,0.5]
[1771348281494,2.95789573,1970.8,1969.8,0.5]
[1771348281700,2.707604,1970.9,1969.8,0.5]
[1771348282032,2.707604,1970.9,1969.9,1.76909995]
[1771348282033,1.26849599,1970.9,1969.9,1.76909995]
[1771348282203,2.87542724,1971.0,1969.9,1.76909995]
[1771348282394,0.0011,1971.2,1970.0,0.49258433]
[1771348282395,1.96341214,1971.2,1970.0,0.49258433]
[1771348282739,17.911117,1971.0,1969.7,0.54]
[1771348282901,2.95739544,1970.9,1969.7,1.03764038]
[1771348283107,1.96341214,1971.2,1969.8,0.49764038]
[1771348283437,4.576481,1971.0,1969.8,0.49764038]
[1771348283619,2.95688065,1970.9,1969.8,0.49764038]
[1771348283796,2.95688065,1970.8,1969.8,0.49764038]
[1771348284131,2.95832779,1970.7,1969.8,0.49764038]
[1771348284333,2.95744108,1970.6,1969.5,5.07724277]
[1771348284534,2.95744108,1970.6,1969.4,5.07765319]
[1771348284757,2.95744108,1970.6,1969.0,5.57532901]
[1771348284758,0.695,1970.7,1968.2,0.001]
[1771348284759,6.78834458,1970.0,1968.2,0.001]
[1771348285023,6.78834458,1970.0,1968.3,11.42615704]
[1771348285024,10.630405,1969.8,1968.3,11.42615704]
[1771348285223,2.95744108,1969.9,1968.3,11.42615704]
[1771348285224,2.95744108,1969.7,1968.4,0.49764038]
[1771348285402,2.95744108,1969.6,1968.4,1.03964038]
[1771348285601,2.95568726,1969.5,1968.5,10.15602546]
[1771348285803,11.397989,1969.8,1968.5,10.15602546]
[1771348286008,1.26929325,1969.6,1968.6,1.26993802]
[1771348286320,1.26929325,1969.6,1968.7,10.15602546]
[1771348286525,1.26929325,1969.6,1968.6,0.542]
[1771348286827,2.95518695,1969.5,1968.7,10.15602546]
[1771348287026,0.00741567,1969.1,1968.2,0.001]
[1771348287341,0.00741567,1969.1,1968.0,0.001]
[1771348287342,30.0,1968.9,1968.0,0.001]
[1771348287503,4.44236389,1969.1,1968.0,0.001]
[1771348287504,23.041025,1968.7,1968.0,0.001]
[1771348287706,22.597747,1968.5,1968.0,0.001]
[1771348287902,1.27013158,1968.3,1967.4,0.0359]
[1771348288106,0.699,1968.2,1967.6,10.15602546]
[1771348289136,0.699,1968.2,1967.4,0.0359]
[1771348289340,0.699,1968.2,1966.9,0.49764038]
[1771348289341,6.82132197,1968.0,1966.5,0.49764038]
[1771348289545,3.208,1967.8,1966.4,0.49764038]
[1771348289747,0.698,1967.7,1966.4,0.543]
[1771348290039,1.968564,1967.7,1966.6,1.76886991]
[1771348290200,1.968564,1967.7,1966.6,2.31186991]
[1771348290618,1.968564,1967.7,1966.7,0.544]
[1771348290818,1.968564,1967.7,1966.6,1.76886991]
[1771348291205,1.968564,1967.7,1966.6,1.81522953]
[1771348291746,1.968564,1967.7,1967.4,0.001]
[1771348291949,0.698,1967.7,1967.4,0.001]
[1771348292103,1.96853562,1967.7,1967.4,0.001]
[1771348292297,0.698,1967.7,1967.4,0.001]
[1771348292537,10.700273,1967.6,1966.6,1.27122953]
[1771348292740,4.264,1967.6,1966.6,1.27122953]
[1771348293045,0.698,1967.7,1966.6,1.27122953]
[1771348293347,0.698,1967.7,1966.7,0.49764038]
[1771348293642,1.96852396,1967.7,1966.7,1.04164038]
[1771348293844,30.0,1967.6,1966.7,0.49764038]
[1771348294040,1.27064803,1967.5,1966.8,1.81509234]
[1771348294342,1.27064803,1967.5,1966.7,1.76877212]
[1771348294512,1.27064803,1967.5,1966.7,2.31277212]
[1771348294716,1.27063442,1967.6,1966.7,2.31277212]
[1771348294905,30.0,1967.6,1966.7,2.31277212]
[1771348295243,30.0,1967.6,1966.8,0.49764038]
[1771348295445,0.915,1967.9,1966.8,0.49764038]
[1771348295654,2.18540091,1967.9,1966.8,0.49764038]
[1771348295960,6.82132197,1967.3,1965.8,0.49764038]
[1771348296167,11.798229,1967.0,1965.9,7.82761091]
[1771348296825,16.267825,1966.8,1964.9,5.08923557]
[1771348297022,21.50785,1966.4,1965.0,0.49764038]
[1771348297259,6.216001,1966.6,1965.2,0.49764038]
[1771348297629,6.216001,1966.6,1965.3,6.55592873]
[1771348297830,15.051786,1966.4,1965.3,6.55592873]
[1771348298026,7.772,1966.2,1965.4,1.27200569]
[1771348298263,0.703,1966.3,1965.4,1.27200569]
[1771348298425,0.704,1966.7,1965.5,6.55592873]
[1771348298758,13.47584497,1966.6,1965.5,6.55592873]
[1771348298959,16.395915,1966.5,1965.5,6.55592873]
[1771348299165,14.95538,1966.5,1965.5,6.55592873]
[1771348299533,12.910078,1966.5,1965.5,6.55592873]
[1771348299728,7.258941,1966.7,1965.5,6.55592873]
[1771348300124,20.111373,1966.5,1965.5,7.82782864]
[1771348300325,1.27122953,1966.6,1965.5,6.55592873]
[1771348300326,2.754866,1966.3,1965.5,6.55592873]
[1771348300522,2.754866,1966.3,1965.5,7.82784853]
[1771348300853,2.064834,1966.8,1965.6,7.10192873]
[1771348301051,1.97603563,1966.9,1965.7,0.49764038]
[1771348301443,1.97603563,1966.9,1965.8,6.55592873]
[1771348301644,1.97603563,1966.9,1965.8,7.05356911]
[1771348301948,0.705,1966.9,1965.8,7.05356911]
[1771348302138,1.27051887,1967.7,1966.0,0.49764038]
[1771348302461,14.619221,1967.6,1966.2,0.49764038]
[1771348302635,14.619221,1967.6,1966.3,0.546]
[1771348302835,2.0651,1967.5,1966.4,6.55592873]
[1771348303035,1.27051887,1967.7,1966.4,7.05356911]
[1771348303036,0.705,1967.6,1966.4,7.05356911]
[1771348303237,3.12653,1967.5,1966.5,0.546]
[1771348303436,1.97542896,1967.9,1966.6,0.49764038]
[1771348303652,1.97542896,1967.9,1966.6,7.05356911]
[1771348303830,3.134027,1967.8,1966.7,0.49764038]
[1771348304259,3.134027,1967.8,1966.6,6.55592873]
[1771348304260,0.0011,1967.2,1966.6,2.73792873]
[1771348304463,7.147065,1967.1,1965.8,5.53198069]
[1771348304759,6.314601,1967.0,1965.8,6.02983797]
[1771348304962,9.832316,1967.1,1965.9,3.28492873]
[1771348305158,7.980617,1967.1,1965.9,3.28492873]
[1771348305365,8.488494,1966.9,1965.9,2.73792873]
[1771348305567,0.706,1967.0,1965.9,2.73792873]
[1771348305568,2.424,1966.8,1966.0,0.547]
[1771348305731,18.570508,1966.9,1966.0,0.547]
[1771348305931,12.656715,1966.9,1966.1,2.73792873]
[1771348306157,8.94325,1966.7,1966.1,2.73792873]
[1771348306530,1.27110026,1966.8,1966.1,4.00947347]
[1771348306935,1.27110026,1966.8,1966.1,4.00948012]
[1771348307357,1.27110026,1966.8,1966.2,0.547]
[1771348307659,1.27110026,1966.8,1966.1,3.28492873]
[1771348307830,2.63475,1966.7,1966.1,4.55647963]
[1771348308031,1.27110026,1966.8,1966.1,4.55647963]
[1771348308335,5.08365803,1967.1,1966.2,0.547]
[1771348308536,1.27090641,1967.1,1966.2,0.547]
[1771348308737,3.5105,1967.1,1966.3,2.73792873]
[1771348308932,0.0011,1967.2,1966.4,3.28492873]
[1771348309137,1.27195309,1967.2,1966.4,2.73792873]
[1771348309338,1.27195309,1967.2,1966.5,0.547]
[1771348309832,1.27195309,1967.2,1966.6,2.73792873]
[1771348310241,0.0011,1967.2,1966.6,4.55614612]
[1771348311142,0.0011,1967.2,1966.6,2.73792873]
[1771348311355,0.0011,1967.2,1966.7,0.547]
[1771348311664,0.0011,1967.2,1966.8,2.73792873]
[1771348311845,0.0011,1967.2,1966.8,3.28492873]
[1771348312040,0.0011,1967.2,1966.8,2.73792873]
[1771348312663,7.818895,1967.1,1966.6,0.547]
[1771348312851,7.818895,1967.1,1966.4,0.547]
[1771348313054,7.818895,1967.1,1965.7,0.49711018]
[1771348313258,18.701091,1966.9,1965.8,1.81869687]
[1771348313459,12.248234,1967.1,1965.8,1.81869687]
[1771348313855,17.22885197,1967.0,1965.6,0.001]
[1771348314038,17.22885197,1967.0,1965.7,0.547]
[1771348314039,32.93637521,1966.9,1965.7,0.547]
[1771348314239,1.27129417,1966.5,1965.4,0.547]
[1771348314447,3.70415,1966.3,1965.3,0.003]
[1771348314740,1.97629417,1966.5,1965.4,0.547]
[1771348314940,2.94183459,1966.4,1965.4,0.547]
[1771348315141,4.5186,1966.3,1965.3,0.003]
[1771348315344,29.858972,1966.1,1964.6,0.547]
[1771348315694,9.76617492,1966.2,1964.5,1.27256066]
[1771348315695,9.649485,1965.7,1964.5,1.27256066]
[1771348315838,27.135047,1965.9,1964.6,0.547]
[1771348316043,5.925925,1965.7,1964.6,0.547]
[1771348316277,1.27174687,1965.8,1964.5,0.547]
[1771348316463,15.65759,1965.6,1964.5,0.547]
[1771348316664,15.65759,1965.6,1964.4,0.98673187]
[1771348316665,9.76909645,1965.5,1964.4,0.98673187]
[1771348316958,9.779758,1965.3,1964.4,0.98673187]
[1771348317158,9.779758,1965.3,1963.9,0.49711018]
[1771348317159,8.43962,1965.1,1964.0,1.28002522]
[1771348317351,2.026888,1965.4,1964.2,0.49711018]
[1771348317550,5.789979,1965.2,1964.3,1.464]
[1771348317761,19.213948,1965.5,1964.0,0.00711856]
[1771348317961,14.267589,1965.3,1964.0,0.00711856]
[1771348318148,19.611912,1965.1,1964.1,0.548]
[1771348318365,19.611912,1965.1,1964.0,0.55511856]
[1771348318366,7.5142,1964.9,1964.0,0.55511856]
[1771348318667,2.1342,1964.9,1964.0,0.00711856]
[1771348318867,2.5708,1964.9,1964.1,0.547]
[1771348319070,3.0805,1964.9,1964.1,0.547]
[1771348319375,3.070306,1964.9,1964.1,0.547]
[1771348319694,3.070306,1964.9,1964.1,0.001]
[1771348320050,6.82132197,1964.2,1963.3,0.1326344]
[1771348320252,1.27291242,1964.0,1963.8,0.001]
[1771348320471,1.27291242,1964.0,1963.3,0.1326344]
[1771348320472,2.357782,1964.0,1963.3,0.1326344]
[1771348320672,22.215687,1964.0,1963.3,0.1326344]
[1771348320874,8.575467,1963.8,1962.7,0.548]
[1771348321077,2.314,1964.1,1962.8,0.49711018]
[1771348321380,0.712,1964.1,1962.8,1.04511018]
[1771348321683,0.712,1964.1,1962.5,0.49711018]
[1771348321684,11.364447,1963.9,1962.5,0.49711018]
[1771348321855,6.82132197,1963.8,1962.5,0.49711018]
[1771348322054,11.952041,1963.6,1962.4,0.548]
[1771348322265,11.08620172,1964.5,1962.7,0.49711018]
[1771348322266,3.544941,1964.0,1962.7,0.49711018]
[1771348322560,1.27258844,1964.5,1962.9,0.49711018]
[1771348322805,1.27242929,1964.8,1962.9,0.49711018]
[1771348322956,5.796128,1964.7,1963.1,0.49711018]
[1771348323154,5.796128,1964.7,1963.2,1.96311018]
[1771348323353,5.796128,1964.7,1963.3,0.549]
[1771348323552,3.909673,1964.7,1963.3,1.96311018]
[1771348323753,5.08931752,1965.1,1963.5,0.49711018]
[1771348323953,7.998108,1965.0,1963.6,0.917]
[1771348324187,7.998108,1965.0,1962.3,1.96211018]
[1771348324188,6.82773764,1964.3,1962.3,1.96211018]
[1771348324481,13.578525,1964.0,1962.4,2.31906044]
[1771348324662,11.737521,1964.0,1962.4,3.23606044]
[1771348324860,11.737521,1964.0,1962.4,1.77106044]
[1771348325056,11.737521,1964.0,1962.5,1.466]
[1771348325493,30.0,1963.5,1962.0,1.466]
[1771348325647,0.716,1963.4,1962.0,1.466]
[1771348325850,25.974016,1963.3,1962.0,1.45781942]
[1771348326062,15.202299,1963.3,1962.0,1.45781942]
[1771348326383,15.202299,1963.3,1961.9,0.49711018]
[1771348326384,24.165316,1963.1,1961.9,1.04711018]
[1771348326684,12.482383,1963.1,1961.9,2.74124948]
[1771348326859,3.500893,1963.1,1962.0,1.466]
[1771348327185,3.500893,1963.1,1961.8,1.27428841]
[1771348327395,1.27343113,1963.2,1961.1,0.49711018]
[1771348327396,6.82132197,1962.9,1961.1,0.49711018]
[1771348327598,0.718,1963.0,1961.2,0.49711018]
[1771348327897,2.967942,1962.9,1961.4,0.49711018]
[1771348328280,1.27369064,1962.8,1961.5,2.74153479]
[1771348328474,2.5671,1962.7,1961.5,3.23864497]
[1771348328680,1.27369064,1962.8,1961.6,0.49711018]
[1771348329885,1.27367425,1962.9,1961.6,0.49711018]
[1771348330214,2.747897,1963.2,1961.6,0.49711018]
[1771348330373,1.273496,1963.1,1961.8,0.49711018]
[1771348330777,1.273496,1963.1,1961.9,1.468]
[1771348331082,1.273496,1963.1,1961.8,0.49711018]
[1771348331291,1.273496,1963.1,1961.9,1.468]
[1771348332091,1.273496,1963.1,1961.9,1.96511018]
[1771348332296,1.273496,1963.1,1962.0,1.467]
[1771348332495,12.614039,1963.4,1962.1,1.27414504]
[1771348332696,19.64731497,1963.4,1962.0,1.27416509]
[1771348332992,6.101582,1963.1,1962.1,0.549]
[1771348334083,0.0011,1963.2,1962.1,1.04611018]
[1771348334483,0.0011,1963.2,1962.4,0.49679216]
[1771348334694,2.184664,1964.0,1962.4,0.49679216]
[1771348335495,1.27284761,1964.1,1962.6,0.49624216]
[1771348335814,9.72179,1964.0,1962.7,1.467]
[1771348335984,3.54482,1964.0,1962.7,1.467]
[1771348336180,3.54482,1964.0,1962.8,1.466]
[1771348336782,3.54482,1964.0,1962.9,0.548]
[1771348336783,6.872794,1963.8,1962.9,0.548]
[1771348336981,1.27297723,1963.9,1962.9,0.548]
[1771348337200,3.2031,1963.8,1962.9,0.548]
[1771348337595,3.2031,1963.8,1962.7,1.27375554]
[1771348337797,3.2031,1963.8,1962.8,1.45696839]
[1771348338000,3.2031,1963.8,1962.9,0.548]
[1771348338422,0.13648164,1963.7,1962.2,1.518]
[1771348338590,13.300761,1963.4,1962.2,1.518]
[1771348338915,6.82132197,1963.6,1962.3,1.77025734]
[1771348338916,2.242638,1963.6,1962.3,1.77025734]
[1771348339214,4.68831,1963.6,1962.3,1.77025734]
[1771348339418,4.68831,1963.6,1962.4,1.466]
[1771348339598,3.05208,1963.6,1962.4,1.466]
[1771348339797,1.27310689,1963.7,1962.5,0.49624216]
[1771348340022,2.535,1963.6,1962.5,0.49624216]
[1771348340316,1.27310689,1963.7,1962.5,0.49624216]
[1771348340504,2.849558,1963.6,1962.5,0.49624216]
[1771348340706,2.535,1963.6,1962.5,1.7700767]
[1771348340897,17.283098,1963.9,1962.5,1.7700767]
[1771348341101,13.913541,1963.9,1962.5,1.7700767]
[1771348341298,13.913541,1963.9,1962.5,0.49624216]
[1771348341521,13.913541,1963.9,1962.6,1.466]
[1771348341815,5.051697,1963.9,1962.6,1.96224216]
[1771348342016,5.051697,1963.9,1962.6,0.49624216]
[1771348342218,5.051697,1963.9,1962.7,1.466]
[1771348342519,5.09216824,1964.0,1962.8,1.466]
[1771348342520,4.541847,1964.0,1962.8,1.466]
[1771348342701,4.541847,1964.0,1962.9,1.27362575]
[1771348342702,1.27297723,1963.9,1962.9,1.27362575]
[1771348343211,1.27297723,1963.9,1962.9,0.549]
[1771348344593,1.27297723,1963.9,1963.0,0.49624216]
[1771348344909,20.022276,1964.0,1963.1,1.466]
[1771348345111,5.09190895,1964.1,1963.1,1.466]
[1771348345311,2.93777144,1964.0,1963.1,1.466]
[1771348345517,2.93777144,1964.0,1963.1,0.548]
[1771348345518,9.350533,1963.9,1963.1,0.548]
[1771348345714,5.09190895,1964.1,1962.4,0.49624216]
[1771348345715,2.93777144,1963.8,1962.4,0.49624216]
[1771348345902,5.09190895,1964.1,1963.0,0.918]
[1771348345903,12.835195,1964.1,1963.0,0.918]
[1771348346242,2.94278623,1964.0,1963.1,0.49624216]
[1771348346406,2.94278623,1963.9,1963.2,0.548]
[1771348346609,7.376556,1964.2,1963.2,0.548]
[1771348346797,1.27291242,1964.0,1963.2,0.548]
[1771348346997,2.94827292,1963.9,1963.2,1.82143003]
[1771348347197,0.0011,1963.9,1963.1,0.49624216]
[1771348347393,2.94946549,1963.8,1963.2,0.548]
[1771348347598,2.94946549,1963.8,1963.2,1.466]
[1771348347794,2.94946549,1963.8,1962.7,1.76995043]
[1771348348000,2.94946549,1963.8,1962.8,1.96224216]
[1771348348437,2.94946549,1963.8,1962.9,0.49624216]
[1771348348800,2.94946549,1963.8,1963.0,1.466]
[1771348349033,1.27310689,1963.7,1963.0,2.73954894]
[1771348349232,2.94946549,1963.6,1963.0,1.466]
[1771348349400,1.27310689,1963.7,1962.6,0.001]
[1771348349600,3.45999,1963.6,1962.6,1.27481465]
[1771348349911,1.27310689,1963.7,1962.6,1.77105681]
[1771348350428,0.26383969,1963.5,1962.7,1.466]
[1771348350929,1.27330141,1963.4,1962.8,1.27369064]
[1771348351116,1.27330141,1963.4,1962.9,0.548]
[1771348351293,1.53712398,1963.5,1962.9,0.548]
[1771348351495,1.53712398,1963.5,1963.0,0.548]
[1771348351917,1.53712398,1963.5,1962.9,0.548]
[1771348352551,7.364877,1963.4,1962.7,0.548]
[1771348352725,2.896,1963.4,1962.6,0.001]
[1771348353067,1.27336627,1963.3,1962.7,0.548]
[1771348353369,1.27336627,1963.3,1962.8,0.548]
[1771348353956,1.27336627,1963.3,1962.8,0.547]
[1771348354253,14.035927,1963.2,1962.6,0.001]
[1771348354553,20.345328,1962.9,1962.0,0.548]
[1771348354858,10.844911,1963.2,1962.0,0.548]
[1771348355061,10.844911,1963.2,1962.0,1.82218297]
[1771348355062,1.273496,1963.1,1962.0,1.82218297]
[1771348355425,2.774,1963.0,1962.0,1.82218297]
[1771348355642,1.273496,1963.1,1962.0,1.82218297]
[1771348355842,1.53733569,1963.1,1962.0,2.31459344]
[1771348356057,1.53733569,1963.1,1962.1,0.49241047]
[1771348356247,1.53733569,1963.1,1962.2,0.548]
[1771348356552,1.53733569,1963.1,1961.8,0.49241047]
[1771348356732,1.53733569,1963.1,1961.9,1.466]
[1771348357045,1.53733569,1963.1,1961.8,1.76673256]
[1771348357251,1.53733569,1963.1,1962.0,1.466]
[1771348358130,12.565013,1963.0,1961.8,2.31473792]
[1771348358662,4.380367,1962.0,1961.3,1.82466409]
[1771348358820,2.094321,1962.3,1961.3,1.82466409]
[1771348359023,3.72741518,1962.3,1961.3,0.55]
[1771348359239,1.27401518,1962.3,1961.4,0.49241047]
[1771348359618,1.27401518,1962.3,1961.5,1.466]
[1771348360237,1.27401518,1962.3,1961.4,0.49241047]
[1771348360851,1.27401518,1962.3,1961.5,0.547]
[1771348361025,5.654457,1962.4,1961.6,0.001]
[1771348361226,5.654457,1962.4,1961.7,0.547]
[1771348361453,0.26383969,1962.2,1961.7,0.547]
[1771348361755,5.09606074,1962.6,1961.8,0.49241047]
[1771348362052,1.27380355,1962.7,1961.8,0.49241047]
[1771348362355,2.886628,1963.1,1961.8,0.49241047]
[1771348362651,2.95187927,1963.0,1961.8,0.49241047]
[1771348362852,2.95187927,1962.9,1961.8,0.49241047]
[1771348363059,5.09294626,1963.7,1962.3,0.49241047]
[1771348363257,2.95380786,1963.6,1962.5,0.49241047]
[1771348363955,2.95380786,1963.6,1962.6,0.547]
[1771348364158,2.95380786,1963.6,1962.7,1.465]
[1771348364360,2.95380786,1963.6,1962.7,0.546]
[1771348364821,13.66903034,1963.5,1962.2,1.27408011]
[1771348365025,1.27336627,1963.3,1962.5,1.81983302]
[1771348365252,1.27336627,1963.3,1962.6,1.464]
[1771348365454,3.41654,1963.6,1962.6,2.13102422]
[1771348365653,2.95563245,1963.5,1962.6,2.13102422]
[1771348365822,2.95563245,1963.4,1962.6,0.66702422]
[1771348366026,2.95590201,1963.3,1962.6,0.546]
[1771348366264,2.95590201,1963.2,1962.1,1.27414504]
[1771348366432,22.999666,1963.3,1962.4,0.546]
[1771348366636,8.327016,1963.1,1962.4,0.546]
[1771348366849,13.329871,1963.4,1962.4,0.546]
[1771348367033,4.22882014,1963.3,1962.5,1.27388535]
[1771348367234,1.95540123,1963.2,1962.4,1.81994407]
[1771348367443,1.27341891,1963.3,1962.3,1.2739786]
[1771348367758,4.393127,1963.2,1962.4,1.464]
[1771348367961,2.873127,1963.2,1962.2,1.94106694]
[1771348368167,1.27341891,1963.3,1962.5,0.546]
[1771348368535,1.27341891,1963.3,1962.2,1.94106694]
[1771348368734,1.27341891,1963.3,1962.3,0.66702422]
[1771348369242,14.1639,1963.6,1962.4,2.73795026]
[1771348369444,2.608602,1963.6,1962.5,0.66702422]
[1771348370136,5.09346508,1963.7,1962.5,0.66702422]
[1771348370339,2.734402,1963.6,1962.6,0.546]
[1771348370537,2.448529,1963.6,1962.6,1.464]
[1771348370738,2.448529,1963.6,1962.2,5.09630601]
[1771348370739,8.951856,1963.0,1961.7,1.27440485]
[1771348371076,1.27369064,1962.8,1961.6,0.001]
[1771348371257,14.851889,1962.7,1961.6,0.001]
[1771348371572,1.27369064,1962.8,1961.7,0.548]
[1771348371737,3.765316,1962.7,1961.7,0.548]
[1771348372440,2.440998,1962.7,1961.7,0.548]
[1771348372960,3.182516,1962.7,1961.7,0.548]
[1771348373162,1.27382044,1962.6,1961.7,1.82239975]
[1771348373959,1.27362575,1962.9,1961.7,1.82239975]
[1771348374166,1.27362575,1962.9,1961.8,0.70028183]
[1771348374542,7.784295,1963.1,1961.8,0.70028183]
[1771348374743,0.01201468,1962.6,1961.8,0.70028183]
[1771348375360,0.01201468,1962.6,1961.9,1.97455676]
[1771348375558,0.0011,1963.0,1962.3,7.30048334]
[1771348375744,0.0011,1963.0,1962.1,0.70028183]
[1771348375948,0.0011,1963.0,1962.3,0.70028183]
[1771348376540,0.0011,1963.0,1962.4,1.466]
[1771348376742,1.27468481,1963.0,1962.4,0.548]
[1771348377180,0.0011,1963.0,1962.3,0.548]
[1771348377395,0.0011,1963.0,1962.4,1.27395026]
[1771348377863,1.27414676,1963.8,1962.5,0.70028183]
[1771348378063,0.0011,1963.8,1963.1,0.70028183]
[1771348378252,0.0011,1963.8,1963.2,1.466]
[1771348379172,0.0011,1963.8,1963.1,0.70028183]
[1771348379356,0.0011,1963.8,1963.2,2.73943113]
[1771348380777,0.0011,1963.8,1963.3,0.549]
[1771348380987,0.0011,1963.8,1963.2,0.549]
[1771348381292,0.0011,1963.8,1963.3,1.27336627]
[1771348382386,0.0011,1963.8,1963.0,1.27356087]
[1771348382573,0.0011,1963.8,1963.1,0.55]